{"text_format":"1","workbook":"xlsx","n_sheets":2,"sheets":["ACR SDG Contributions Report","Database"],"not_rendered":{"charts":0,"images":1,"macros":1,"external_links":0,"defined_names":0,"comments":0,"pivot_tables":0},"unopened":[],"bounds":{"document_bytes":16777216,"sheet_cells":100000,"rows_first":2000,"rows_last":500,"rows_between":2000,"halvings":0,"cell_chars":16384,"cell_head_chars":4096},"cells_cut":0,"cells_raw":0,"read":"whole","date_system":"1900"}

{"sheet":"ACR SDG Contributions Report","index":0,"n_rows":31,"n_cols":4,"rows_kept":31,"cut":false,"hidden":false,"merged":[[15,0,15,1],[26,0,26,2],[27,0,27,2],[28,0,28,2],[29,0,29,2],[16,0,16,2],[17,0,17,2],[18,0,18,2],[19,0,19,2],[20,0,20,2],[15,2,15,3],[30,0,30,2],[21,0,21,2],[22,0,22,2],[23,0,23,2],[24,0,24,2],[25,0,25,2],[14,1,14,3],[6,0,6,3],[7,0,7,1],[9,0,9,1],[10,1,10,3],[11,1,11,3],[0,0,0,6],[13,1,13,3],[8,1,8,3],[9,2,9,3],[12,1,12,3],[4,0,4,1]]}
["Sustainable Development Goals (SDGs) Contribution Report"]
[]
["INDUSTRIAL PROJECTS"]
["VERSION 1.1"]
["2024-10-11"]
["\n"]
["This report, as required in the ACR Standard v8.0, provides a qualitative assessment of the positive impacts the project is delivering to the United Nations Sustainable Development Goals (SDGs). The identified contributions are based on the standardized ACR SDG Contributions Reporting Tool."]
["ACR Project #:"]
[]
["Project Name:"]
["1.","Select the applicable ACR project type from the drop-down menu below. This will auto populate the UN SDG targets to which project implementation is likely to positively contribute, as conservatively identified in the ACR SDG Contributions Reporting Tool. "]
["2.","If your project positively contributes to any additional SDG targets, such as the \"conditional\" targets identified in the ACR SDG Contributions Reporting Tool, please include those in the extra rows provided. "]
["3.","Provide a description of how the project contributes to each of the SDG targets identified."]
["4.","Where the SDG objectives of the host country are relevant and such is feasible, provide information on how the project activity is consistent with the SDG objectives of the host country."]
["5.","Hide any unused rows, save the completed template as a PDF, and upload it to the ACR Registry with the GHG Project Plan."]
["Project Type:",null,"Choose project type from drop-down"]
["DIRECT POSITIVE IMPACT TO SDG TARGETS",null,null,"DESCRIPTION OF PROJECT'S CONTRIBUTION(S) TO SDG TARGET"]
[{"$f":"IFERROR(VLOOKUP(C16,Table2[#All],2,FALSE),\" \")","v":""}]
[{"$f":"IFERROR(VLOOKUP(C16,Table2[#All],3,FALSE),\" \")","v":""}]
[{"$f":"IFERROR(VLOOKUP(C16,Table2[#All],4,FALSE),\" \")","v":""}]
[{"$f":"IFERROR(VLOOKUP(C16,Table2[#All],5,FALSE),\" \")","v":""}]
[{"$f":"IFERROR(VLOOKUP(C16,Table2[#All],6,FALSE),\" \")","v":""}]
[]
[]
["INDIRECT POSITIVE IMPACT TO SDG TARGETS",null,null,"DESCRIPTION OF PROJECT'S CONTRIBUTION(S) TO SDG TARGET"]
[{"$f":"IFERROR(VLOOKUP(C16,Table2[#All],7,FALSE),\" \")","v":""}]
[{"$f":"IFERROR(VLOOKUP(C16,Table2[#All],8,FALSE),\" \")","v":""}]
[{"$f":"IFERROR(VLOOKUP(C16,Table2[#All],9,FALSE),\" \")","v":""}]
[]
[]
["INFORMATION ON HOW THE PROJECT ACTIVITY IS CONSISTENT WITH THE SDG OBJECTIVES OF THE HOST COUNTRY, WHERE THE SDG OBJECTIVES ARE RELEVANT, AND SUCH IS FEASIBLE."]

{"sheet":"Database","index":1,"n_rows":11,"n_cols":11,"rows_kept":11,"cut":false,"hidden":true,"merged":[]}
["Select methodology","First Direct SDG","Second Direct SDG","Third Direct SDG","Fourth Direct SDG","Fifth Direct SDG","First Indirect SDG","Second Indirect SDG","Third Indirect SDG","Fifth Indirect SDG","Sixth Indirect SDG"]
["Choose project type from drop-down",{"$f":"\"\"","v":""},{"$f":"\"\"","v":""},{"$f":"\"\"","v":""},{"$f":"\"\"","v":""},{"$f":"\"\"","v":""},{"$f":"\"\"","v":""},{"$f":"\"\"","v":""},{"$f":"\"\"","v":""},{"$f":"\" \"","v":" "},{"$f":"\" \"","v":" "}]
["Advanced Refrigeration Systems","SDG 9: Build resilient infrastructure, promote inclusive and sustainable industrialization and foster innovation\n\n9.4  By 2030, upgrade infrastructure and retrofit industries to make them sustainable, with increased resource-use efficiency and greater adoption of clean and environmentally sound technologies and industrial processes, with all countries taking action in accordance with their respective capabilities. ","SDG 12: Ensure sustainable consumption and production patterns\n\n12.6  Encourage companies, especially large and transnational companies, to adopt sustainable practices and to integrate sustainability information into their reporting cycle","SDG 13: Take urgent action to combat climate change and its impacts\n\n13.2  Integrate climate change measures into national policies, strategies and planning",{"$f":"\" \"","v":" "},{"$f":"\" \"","v":" "},"SDG 3: Ensure healthy lives and promote well-being for all at all ages\n\n3.9  By 2030, substantially reduce the number of deaths and illnesses from hazardous chemicals and air, water and soil pollution and contamination.  ","SDG 6: Ensure availability and sustainable management of water and sanitation for all\n\n6.3  By 2030, improve water quality by reducing pollution, eliminating dumping and minimizing release of hazardous chemicals and materials, halving the proportion of untreated wastewater and substantially increasing recycling and safe reuse globally","SDG 7: Ensure access to affordable, reliable, sustainable and modern energy for all\n\n7.3  By 2030, double the global rate of improvement in energy efficiency"," "," "]
["Capturing and Destroying Methane from Coal and Trona Mines in North America","SDG 9: Build resilient infrastructure, promote inclusive and sustainable industrialization and foster innovation\n\n9.4  By 2030, upgrade infrastructure and retrofit industries to make them sustainable, with increased resource-use efficiency and greater adoption of clean and environmentally sound technologies and industrial processes, with all countries taking action in accordance with their respective capabilities. ","SDG 12: Ensure sustainable consumption and production patterns\n\n12.4  By 2020, achieve the environmentally sound management of chemicals and all wastes throughout their life cycle, in accordance with agreed international frameworks, and significantly reduce their release to air, water and soil in order to minimize their adverse impacts on human health and the environment\n\n12.6  Encourage companies, especially large and transnational companies, to adopt sustainable practices and to integrate sustainability information into their reporting cycle","SDG 13: Take urgent action to combat climate change and its impacts\n\n13.2  Integrate climate change measures into national policies, strategies and planning",{"$f":"\" \"","v":" "},{"$f":"\" \"","v":" "},"SDG 3: Ensure healthy lives and promote well-being for all at all ages\n\n3.9  By 2030, substantially reduce the number of deaths and illnesses from hazardous chemicals and air, water and soil pollution and contamination.  ","SDG 8: Promote sustained, inclusive and sustainable economic growth, full and productive employment and decent work for all\n\n8.4  Improve progressively, through 2030, global resource efficiency in consumption and production and endeavour to decouple economic growth from environmental degradation, in accordance with the 10‑Year Framework of Programmes on Sustainable Consumption and Production, with developed countries taking the lead",{"$f":"\" \"","v":" "}," "," "]
["Carbon Capture and Storage Projects","SDG 9: Build resilient infrastructure, promote inclusive and sustainable industrialization and foster innovation\n\n9.4  By 2030, upgrade infrastructure and retrofit industries to make them sustainable, with increased resource-use efficiency and greater adoption of clean and environmentally sound technologies and industrial processes, with all countries taking action in accordance with their respective capabilities. ","SDG 12: Ensure sustainable consumption and production patterns\n\n12.6  Encourage companies, especially large and transnational companies, to adopt sustainable practices and to integrate sustainability information into their reporting cycle","SDG 13: Take urgent action to combat climate change and its impacts\n\n13.2  Integrate climate change measures into national policies, strategies and planning",{"$f":"\" \"","v":" "}," ","SDG 7: Ensure access to affordable, reliable, sustainable and modern energy for all\n\nTarget 7.a  By 2030, enhance international cooperation to facilitate access to clean energy research and technology, including renewable energy, energy efficiency and advanced and cleaner fossil-fuel technology, and promote investment in energy infrastructure and clean energy technology."," "," "," "," "]
["Certified Reclaimed HFC Refrigerants, Propellants, and Fire Suppressants","SDG 9: Build resilient infrastructure, promote inclusive and sustainable industrialization and foster innovation\n\n9.4  By 2030, upgrade infrastructure and retrofit industries to make them sustainable, with increased resource-use efficiency and greater adoption of clean and environmentally sound technologies and industrial processes, with all countries taking action in accordance with their respective capabilities. ","SDG 12: Ensure sustainable consumption and production patterns\n\n12.6  Encourage companies, especially large and transnational companies, to adopt sustainable practices and to integrate sustainability information into their reporting cycle","SDG 13: Take urgent action to combat climate change and its impacts\n\n13.2  Integrate climate change measures into national policies, strategies and planning",{"$f":"\" \"","v":" "},{"$f":"\" \"","v":" "},"SDG 3: Ensure healthy lives and promote well-being for all at all ages\n\n3.9  By 2030, substantially reduce the number of deaths and illnesses from hazardous chemicals and air, water and soil pollution and contamination.  ",{"$f":"\" \"","v":" "},{"$f":"\" \"","v":" "}," "," "]
["Destruction of Ozone Depleting Substances (ODS) and High-Global Warming Potential (GWP) Foam","SDG 9: Build resilient infrastructure, promote inclusive and sustainable industrialization and foster innovation\n\n9.4  By 2030, upgrade infrastructure and retrofit industries to make them sustainable, with increased resource-use efficiency and greater adoption of clean and environmentally sound technologies and industrial processes, with all countries taking action in accordance with their respective capabilities. ","SDG 12: Ensure sustainable consumption and production patterns\n\n12.4  By 2020, achieve the environmentally sound management of chemicals and all wastes throughout their life cycle, in accordance with agreed international frameworks, and significantly reduce their release to air, water and soil in order to minimize their adverse impacts on human health and the environment","SDG 13: Take urgent action to combat climate change and its impacts\n\n13.2  Integrate climate change measures into national policies, strategies and planning"," "," ","SDG 3: Ensure healthy lives and promote well-being for all at all ages\n\n3.9  By 2030, substantially reduce the number of deaths and illnesses from hazardous chemicals and air, water and soil pollution and contamination.  ","SDG 14: Conserve and sustainably use the oceans, seas and marine resources for sustainable development\n\n14.1  By 2025, prevent and significantly reduce marine pollution of all kinds, in particular from land-based activities, including marine debris and nutrient pollution","SDG 15: Protect, restore and promote sustainable use of terrestrial ecosystems, sustainably manage forests, combat desertification, and halt and reverse land degradation and halt biodiversity loss\n\n15.1  By 2020, ensure the conservation, restoration and sustainable use of terrestrial and inland freshwater ecosystems and their services, in particular forests, wetlands, mountains and drylands, in line with obligations under international agreements."," "," "]
["Destruction of Ozone Depleting Substances (ODS) from International Sources","SDG 9: Build resilient infrastructure, promote inclusive and sustainable industrialization and foster innovation\n\n9.4  By 2030, upgrade infrastructure and retrofit industries to make them sustainable, with increased resource-use efficiency and greater adoption of clean and environmentally sound technologies and industrial processes, with all countries taking action in accordance with their respective capabilities. ","SDG 12: Ensure sustainable consumption and production patterns\n\n12.4  By 2020, achieve the environmentally sound management of chemicals and all wastes throughout their life cycle, in accordance with agreed international frameworks, and significantly reduce their release to air, water and soil in order to minimize their adverse impacts on human health and the environment","SDG 13: Take urgent action to combat climate change and its impacts\n\n13.2  Integrate climate change measures into national policies, strategies and planning",{"$f":"\" \"","v":" "},{"$f":"\" \"","v":" "},"SDG 3. Ensure healthy lives and promote well-being for all at all ages\n\n3.9 By 2030, substantially reduce the number of deaths and illnesses from hazardous chemicals and air, water and soil pollution and contamination","SDG 14: Conserve and sustainably use the oceans, seas and marine resources for sustainable development\n\n14.1  By 2025, prevent and significantly reduce marine pollution of all kinds, in particular from land-based activities, including marine debris and nutrient pollution","SDG 15: Protect, restore and promote sustainable use of terrestrial ecosystems, sustainably manage forests, combat desertification, and halt and reverse land degradation and halt biodiversity loss\n\n15.1  By 2020, ensure the conservation, restoration and sustainable use of terrestrial and inland freshwater ecosystems and their services, in particular forests, wetlands, mountains and drylands, in line with obligations under international agreements."," "," "]
["Landfill Gas Destruction and Beneficial Use Projects","SDG 7: Ensure access to affordable, reliable, sustainable and modern energy for all\n\nTarget 7.a  By 2030, enhance international cooperation to facilitate access to clean energy research and technology, including renewable energy, energy efficiency and advanced and cleaner fossil-fuel technology, and promote investment in energy infrastructure and clean energy technology.","SDG 9: Build resilient infrastructure, promote inclusive and sustainable industrialization and foster innovation\n\n9.4  By 2030, upgrade infrastructure and retrofit industries to make them sustainable, with increased resource-use efficiency and greater adoption of clean and environmentally sound technologies and industrial processes, with all countries taking action in accordance with their respective capabilities. ","SDG 11: Make cities and human settlements inclusive, safe, resilient and sustainable\n\n11.6  By 2030, reduce the adverse per capita environmental impact of cities, including by paying special attention to air quality and municipal and other waste management","SDG 12: Ensure sustainable consumption and production patterns\n\n12.4  By 2020, achieve the environmentally sound management of chemicals and all wastes throughout their life cycle, in accordance with agreed international frameworks, and significantly reduce their release to air, water and soil in order to minimize their adverse impacts on human health and the environment\n\n12.6  Encourage companies, especially large and transnational companies, to adopt sustainable practices and to integrate sustainability information into their reporting cycle","SDG 13: Take urgent action to combat climate change and its impacts\n\n13.2  Integrate climate change measures into national policies, strategies and planning","SDG 3: Ensure healthy lives and promote well-being for all at all ages\n\n3.9  By 2030, substantially reduce the number of deaths and illnesses from hazardous chemicals and air, water and soil pollution and contamination.  ","SDG 8: Promote sustained, inclusive and sustainable economic growth, full and productive employment and decent work for all\n\n8.4  Improve progressively, through 2030, global resource efficiency in consumption and production and endeavour to decouple economic growth from environmental degradation, in accordance with the 10‑Year Framework of Programmes on Sustainable Consumption and Production, with developed countries taking the lead"," "," "," "]
["Plugging Orphaned Oil and Gas Wells in the U.S. and Canada","SDG 12: Ensure sustainable consumption and production patterns\n\n12.4  By 2020, achieve the environmentally sound management of chemicals and all wastes throughout their life cycle, in accordance with agreed international frameworks, and significantly reduce their release to air, water and soil in order to minimize their adverse impacts on human health and the environment","SDG 13: Take urgent action to combat climate change and its impacts\n\n13.2  Integrate climate change measures into national policies, strategies and planning",{"$f":"\" \"","v":" "},{"$f":"\" \"","v":" "},{"$f":"\" \"","v":" "},"SDG 9: Build resilient infrastructure, promote inclusive and sustainable industrialization and foster innovation\n\n9.4  By 2030, upgrade infrastructure and retrofit industries to make them sustainable, with increased resource-use efficiency and greater adoption of clean and environmentally sound technologies and industrial processes, with all countries taking action in accordance with their respective capabilities. ",{"$f":"\" \"","v":" "},{"$f":"\" \"","v":" "}," "," "]
["Transition to Advanced Formulation Blowing Agents in Foam Manufacturing and Use","SDG 9: Build resilient infrastructure, promote inclusive and sustainable industrialization and foster innovation\n\n9.4  By 2030, upgrade infrastructure and retrofit industries to make them sustainable, with increased resource-use efficiency and greater adoption of clean and environmentally sound technologies and industrial processes, with all countries taking action in accordance with their respective capabilities. ","SDG 12: Ensure sustainable consumption and production patterns\n\n12.6  Encourage companies, especially large and transnational companies, to adopt sustainable practices and to integrate sustainability information into their reporting cycle","SDG 13: Take urgent action to combat climate change and its impacts\n\n13.2  Integrate climate change measures into national policies, strategies and planning"," "," ","SDG 3: Ensure healthy lives and promote well-being for all at all ages\n\n3.9  By 2030, substantially reduce the number of deaths and illnesses from hazardous chemicals and air, water and soil pollution and contamination.  ","SDG 6: Ensure availability and sustainable management of water and sanitation for all\n\n6.3  By 2030, improve water quality by reducing pollution, eliminating dumping and minimizing release of hazardous chemicals and materials, halving the proportion of untreated wastewater and substantially increasing recycling and safe reuse globally"," "," "," "]